Cogmind - Beta 16 @@@ ROGUE MODE // 2025.12.14 @ 19:34:57 Player: Byrd Result: Destroyed by G-47 Trooper with Particle Gun Performance ------------- Evolutions (0) 0 Regions Visited (1) 200 Robots Destroyed (13) 65 Value Destroyed (321) 321 Prototype IDs (0) 0 Alien Tech Used (0) 0 Bonus (0) 0 TOTAL SCORE: 586 Bonus ------- None Cogmind --------- Core Integrity 0/250 Matter 300/300 Energy 214/250 System Corruption 0% Temperature Cool (9) Movement Walking (190) Ox1 Location -10/Materials Parts ------- > --- POWER (1) -------- Ion Engine > --- PROPULSION (2) --- Aluminum Leg > --- UTILITY (2) ------ Small Storage Unit Terrain Scanner > --- WEAPON (2) ------- (None) > --- INVENTORY (8) ---- Light Nuclear Core Medium Matter Pod (100) Propulsion Shielding Light Armor Plating Shotgun Shotgun Datajack Peak State ------------ > --- POWER ------------ Light Ion Engine > --- PROPULSION ------- Aluminum Leg Aluminum Leg > --- UTILITY ---------- Small Storage Unit Light Armor Plating > --- WEAPON ----------- Small Laser Assault Rifle > --- INVENTORY -------- Ion Engine Aluminum Leg Flight Unit Improved Heat Sink Medium Matter Pod Propulsion Shielding Light Armor Plating EM Pulse Gun [Rating: 8] Favorites ----------- Power Ion Engine Engine Ion Engine Propulsion Aluminum Leg Leg Aluminum Leg Utility Small Storage Unit Device Terrain Scanner Storage Small Storage Unit Protection Light Armor Plating Weapon Small Laser Energy Gun Small Laser Energy Cannon Beam Cannon Ballistic Gun Assault Rifle Build | -11 -10 ------- Run | Yrd Mat Slots Evolved . | . . Power . | . . Propulsion . | . . Utility . | . . Weapon . | . . Parts Attached 17 | 6 11 Power 4 | 1 3 Engine 4 | 1 3 Core . | . . Reactor . | . . Propulsion 6 | 2 4 Treads . | . . Leg 6 | 2 4 Wheel . | . . Hover . | . . Flight . | . . Utility 3 | 1 2 Device 1 | . 1 Storage 1 | 1 . Processor . | . . Hackware . | . . Protection 1 | . 1 Artifact . | . . Weapon 4 | 2 2 Energy Gun 2 | 1 1 Energy Cannon 1 | . 1 Ballistic Gun 1 | 1 . Ballistic Cannon . | . . Launcher . | . . Special Weapon . | . . Impact Weapon . | . . Slashing Weapon . | . . Piercing Weapon . | . . Special Melee Weapon . | . . Unidentified Prototypes . | . . Parts Lost 6 | . 6 Power 2 | . 2 Propulsion 1 | . 1 Utility . | . . Weapon 3 | . 3 Highest Loss Streak 4 | . 4 To Critical Strikes . | . . Average Backups 6 | 1 7 Power 1 | . 1 Propulsion 1 | . 1 Utility 3 | . 3 Weapon 1 | . 1 Tool/Special . | . . Unused Backups 14 | . 14 Power 2 | . 2 Propulsion 2 | . 2 Utility 5 | . 5 Weapon 4 | . 4 Tool/Special 1 | . 1 Average Slot Usage (%) 97 | . 97 Engine 13 | . 13 Leg 27 | . 27 Device 2 | . 2 Storage 14 | . 14 Protection 9 | . 9 Energy Gun 24 | . 24 Ballistic Gun 3 | . 3 Peak Build Rating 8 | 6 8 Average Rating 7 | 4 7 On Entrance 3 | . 6 Avg Prop Armor Cover (%) . | . . Naked Turns . | . . Heaviest Build 17 | 11 17 Greatest Support 20 | 20 20 Greatest Overweight (x) 1 | . 1 Average Overweight (x) . | . . Largest Inventory Capacity 8 | 8 8 Average Capacity 7 | 6 8 Most Carried 8 | 4 8 Average Carried 6 | 1 7 Final Capacity 8 | 8 8 Final Carried 7 | 3 7 Class Distribution -------------------- 72% | Scavenger-Mutant 27% | Mutant Dominant Class ---------------- Scavenger-Mutant | -10/Materials Resources | -11 -10 ----------- Run | Yrd Mat Matter Collected 556 | 272 284 Remotely . | . . Salvage Created 514 | 127 387 Parts 29 | 8 21 Haulers Intercepted 1 | . 1 Recyclers Shooed 1 | . 1 Parts Field Recycled . | . . Retrieved Matter . | . . Parts Self-Destructed . | . . Prevented . | . . Parts Restored . | . . Kills | -11 -10 ------- Run | Yrd Mat Combat Hostiles Destroyed 8 | . 8 Guns 8 | . 8 Classes Destroyed 5 | 2 3 Worker 1 | . 1 Tunneler 2 | 2 . Hauler 1 | . 1 Recycler 1 | 1 . Grunt 8 | . 8 Best Kill Streak 2 | 2 2 Combat Bots Only 2 | . 2 Max Kills in Single Turn 1 | 1 1 Gunslinging . | . . Exploded . | . . Melee . | . . Uniques/NPCs Destroyed . | . . Combat | -11 -10 -------- Run | Yrd Mat Hostile Shots Fired 121 | . 121 Missed 33 | . 33 Hits 88 | . 88 Projectile 88 | . 88 Critical Strikes 1 | . 1 Damage Taken 1104 | . 1104 Core 252 | . 252 Absorbed by Shields . | . . Core Remaining (%) 100 | 100 . Volleys Fired 52 | 4 48 Largest 2 | 2 2 Hottest 100 | 60 100 Shots Fired 99 | 8 91 Gun 93 | 8 85 Cannon 6 | . 6 Launcher . | . . Special . | . . Kinetic 25 | 4 21 Thermal 74 | 4 70 Explosive . | . . Electromagnetic . | . . Robot Hit Streak 12 | 2 12 Robot Miss Streak 4 | 1 4 Penetration Max . | . . Secondary Targets . | . . Shots Hit Robots 65 | 5 60 Core Hits 28 | 4 24 Critical Kills . | . . Critical Parts Destroyed 1 | . 1 Critical Strikes 1 | . 1 Destroy 1 | . 1 Melee Attacks . | . . Impact . | . . Slashing . | . . Piercing . | . . Sneak Attacks . | . . Combat Hostiles . | . . Follow-up Attacks . | . . Damage Inflicted 816 | 72 744 Guns 750 | 72 678 Cannons 34 | . 34 Explosions . | . . Melee . | . . Ramming 32 | . 32 Kinetic 250 | 39 211 Thermal 534 | 33 501 Explosive . | . . Electromagnetic . | . . Impact . | . . Slashing . | . . Piercing . | . . Highest Corruption . | . . Average Corruption . | . . Corruption Purged . | . . Corruption Blocked . | . . Overload Shots . | . . Overflow Damage . | . . Projectiles . | . . Explosions . | . . Melee . | . . Knockbacks . | . . Impact . | . . Kinetic . | . . Secondary . | . . Self-Inflicted Damage . | . . Shots . | . . Rammed . | . . Targets Rammed 15 | . 15 Kicked 15 | . 15 Crushed . | . . Highest Temperature 423 | . 423 Average Temperature 116 | . 116 Received Heat Transfer 618 | . 618 Effects 4 | . 4 Shutdowns 1 | . 1 Interference 2 | . 2 Matter Decay 1 | . 1 Siege Activations . | . . Martial Activations . | . . Shielding Activations . | . . Robots Disrupted . | . . Combat Hostiles . | . . Robots Corrupted . | . . Combat Hostiles . | . . Parts Fried . | . . Impact Corruptions . | . . Robots Melted . | . . Combat Hostiles . | . . Parts Melted 3 | . 3 Heat Transferred 1199 | 75 1124 Parts Sabotaged . | . . Parts Stolen . | . . Parts Stripped . | . . Power Chain Reactions . | . . Alert | -11 -10 ------- Run | Yrd Mat Maximum Alert Level . | . . Low Security (%) 100 | 100 100 Level 1 . | . . Level 2 . | . . Level 3 . | . . Level 4 . | . . Level 5 . | . . High Security . | . . Max Security . | . . Peak Influence 70 | 10 70 Initial . | . . Average 12 | 2 12 Influence Increases 276 | 15 261 Destroy 0b10 Robot/C 160 | . 160 Destroy 0b10 Robot/NC 25 | 15 10 Destroy Leader 42 | . 42 Successful Hack 19 | . 19 Lose Combat Pursuer 30 | . 30 Influence Decreases 276 | 15 261 Time Decay 266 | 15 251 Lost Part 10 | . 10 Squads Dispatched 4 | . 4 Investigation 2 | . 2 Extermination . | . . Reinforcement 2 | . 2 Assault . | . . Garrison . | . . Intercept . | . . Searches Triggered . | . . Construction Impeded . | . . Haulers Reinforced . | . . Active Scanning Responses . | . . Cargo Convoy Interrupts . | . . Stealth | -11 -10 --------- Run | Yrd Mat Distress Signals 3 | . 3 Communications Jammed . | . . Distress Signals . | . . Times Spotted 25 | . 25 Peak Tracking Total 7 | . 7 Tactical Retreats 2 | . 2 Traps | -11 -10 ------- Run | Yrd Mat Traps Triggered 1 | . 1 Indirectly . | . . Trap Hack Attempts . | . . Triggered . | . . Disarmed . | . . Reprogrammed . | . . Reused . | . . Traps Extracted . | . . Installed . | . . Triggered . | . . Machines | -11 -10 ---------- Run | Yrd Mat Machines Disabled . | . . Max in Single Turn . | . . Machines Repaired . | . . Machines Dismantled . | . . Machines Sabotaged . | . . Overloaded Fab Kills . | . . Hacking | -11 -10 --------- Run | Yrd Mat Machines Accessed 5 | . 5 Terminals 5 | . 5 Fabricators . | . . Repair Stations . | . . Recycling Units . | . . Scanalyzers . | . . Garrison Access . | . . Total Hacks 14 | . 14 Successful 4 | . 4 Failed 10 | . 10 Catastrophic 3 | . 3 Database Lockouts . | . . Manual 4 | . 4 Terminals 14 | . 14 Fabricators . | . . Repair Stations . | . . Recycling Units . | . . Scanalyzers . | . . Garrison Access . | . . Terminal Hacks 4 | . 4 Terminal Index 1 | . 1 Locate Traps 1 | . 1 Dispatch Records 1 | . 1 Zone Layout 1 | . 1 Fabricator Hacks . | . . Repair Station Hacks . | . . Recycling Unit Hacks . | . . Scanalyzer . | . . Garrison Access Hacks . | . . Unauthorized Hacks . | . . Terminals . | . . Fabricators . | . . Repair Stations . | . . Recycling Units . | . . Scanalyzers . | . . Garrison Access . | . . Data Cores Recovered . | . . Used . | . . Hacking Detections 5 | . 5 Full Trace Events 2 | . 2 Feedback Events . | . . Feedback Blocked . | . . Robot Schematics Acquired . | . . Robots Built . | . . Authchips . | . . Time . | . . Total Robot Build Rating . | . . Part Schematics Acquired . | . . Parts Built . | . . Authchips . | . . Time . | . . Total Part Build Rating . | . . Part Studies Acquired . | . . Parts Repaired . | . . Time . | . . Parts Recycled . | . . Recycled Matter . | . . Retrieved Matter . | . . Retrieved Components . | . . Parts Scanalyzed . | . . Part Schematics Acquired . | . . Parts Damaged . | . . Bothacking | -11 -10 ------------ Run | Yrd Mat Used RIF Installer . | . . Robots Hacked . | . . Non-combat . | . . Combat . | . . Robot Hacks Applied . | . . Relay Couplers Released . | . . Fabnet Peak Effective % . | . . Robots Rewired . | . . Allies Hacked . | . . Hacks Repelled . | . . Allies | -11 -10 -------- Run | Yrd Mat Total Allies . | . . Largest Group . | . . Highest-Rated Group . | . . Highest-Rated Ally . | . . Total Orders . | . . Ally Attacks . | . . Total Damage . | . . Kills . | . . Allies Corrupted . | . . Allies Melted . | . . Intel | -11 -10 ------- Run | Yrd Mat Active Infowar (turns) 225 | . 225 Terrain 225 | . 225 Robot Analysis Total . | . . Derelict Logs Recovered . | . . Drone Launches . | . . Drone Recoveries . | . . Exploration | -11 -10 ------------- Run | Yrd Mat Turns Passed 1518 | 95 1423 Spaces Moved 1042 | 58 984 Core 10 | 10 . Treads . | . . Legs 1032 | 48 984 Wheels . | . . Hover . | . . Flight . | . . Fastest Speed 50 | 50 120 Average Speed 119 | 107 120 Slowest Speed 190 | 120 190 Overloaded Moves . | . . Propulsion Burnouts . | . . Robots Hopped . | . . Potential Cave-ins . | . . Cave-ins Triggered . | . . Exploration Rate (%) 42 | 4 80 Regions Visited 1 Branch Regions . Pre-discovered Areas . | . . Known Exits Taken . | . . Unknown Exits Taken 1 | 1 . Scrap Searched . | . . Spaces Dug . | . . Terrain Destroyed . | . . Melee . | . . Projectile . | . . AOE . | . . Terrain Rammed . | . . Walls Destroyed . | . . Machines Disabled . | . . Actions | -11 -10 --------- Run | Yrd Mat Total 1220 | 83 1137 Wait 36 | 5 31 Move 1041 | 57 984 Hop . | . . Pick Up 34 | 10 24 Fast Attach . | . . Attach 19 | 6 13 Detach 6 | . 6 Swap . | . . Drop 17 | 1 16 Fire 52 | 4 48 Melee . | . . Ram . | . . Kick 15 | . 15 Crush . | . . Escape Stasis . | . . Rewire . | . . Trap . | . . Miscellaneous . | . . Route ------- -11/Scrapyard -10/Materials (discovered 5 exits: [*Mat x3] / [*Min x2]) History --------- Turn | Location | Event 26 | -11/Scrapyard | Discovered new exit (range 16) 96 | -11/Scrapyard | Entered Materials 307 | -10/Materials | Discovered new exit (range 6) 310 | -10/Materials | Build established: Mutant 577 | -10/Materials | Discovered new exit (range 7) 718 | -10/Materials | Build established: Scavenger-Mutant 970 | -10/Materials | Discovered new exit (range 7) 1204 | -10/Materials | Core integrity fell below 50% 1251 | -10/Materials | Discovered new exit (range 6) 1497 | -10/Materials | Discovered new exit (range 12) 1512 | -10/Materials | Core integrity fell below 20% 1519 | -10/Materials | Destroyed by G-47 Trooper with Particle Gun Last Messages --------------- Found 6 active squads: 3x Surveillance 2x Patrol 1x Transport ALERT: Suspicious activity at Terminal M005. Dispatching Investigation squad. Triggered Alarm Trap. An alarm sounds. ALERT: Alarm triggered, dispatching investigation squad. Kicked G-34 Mercenary. Kicked G-34 Mercenary out of the way. Kicked G-34 Mercenary. EXIT=FOUND Ion Engine destroyed. Aluminum Leg destroyed. Sml. Laser destroyed. Critical hit (Burn: +37). Sml. Laser destroyed. Kicked G-47 Trooper out of the way. Kicked G-47 Trooper. Map ----- +----------------------------------------------------+ | ??# + !] #????? | | ??# """ # ! #????? | | ??# """ # #????? | | ??# """ ####### ######## #????? | | ??# #????## # # #????? | | ??# #??#??# / """ # #????? | | ### #?????# # """ # #????? | | ################ # """ #?#????? | | #????# # # #??????? | | #??#?# """ # # #??????? | | ###### """ Y" # ########??????? | | + + """ """ + #?????????????? | | ### ## """ # # ????????????? | | #?# ## ! * # #?????????????? | | #### ## # #?????? ??????? | | ## # +???? ????????? | | ############ #?? ??????????? | | #???#????### ##???#?#??????? | | # ##???###### #????????????? | | # ###??# #######??#???? | | # T#??# " ##?????? | | # ""#??# ##### T#?????? | | # ###??## ### #??## ##?????? | | # #????## ??#######???# #??????? | | # #?????# ##?????????##/######## | | # #?????# ????????? ?#@g # | | # ###### ???????????#%""" """ # | | # # #[[ ?????????## """ """ # | | # # #[???????? ???#g""" """%# | | # # ##????????????# gg %%# | | # # #????????????## gg %# | | #% # #?????????????# # | | + + #???????? ? ??# # | | ###### #?????????????#######+### | | #????# #??????????????????? ? | | #??#?# ##???????#? ???????? # | | ##########?????????????????? # | | ## [#????????????????????? ! # | | [#??????????????????? ### [# | | !!#???????????????#??????## ## | | !!#???????????????????? ??# #? | | ]]#???????????????????????+ #? | | ]]#???????????????????????# < #? | | ######???????????????????????# #? | | ?????????????????????????????#####? | | ??????????????????????????????????? | | ??????????#???????????????????????? | | ??????????????????????????????????? | | ??????????????????????????????????? | | | +----------------------------------------------------+ Best States ------------- Heat Dissipation 25 Energy Generation 10 Energy Capacity 250 Matter Stores 300 Matter Capacity 300 Sight Range 16 Terrain Scan Range 14 Terrain Scan Density 10 Armor Coverage 150 Evasion (%) 55 Item Schematics ----------------- None Robot Schematics ------------------ None Fabricated ------------ Nothing Repaired ---------- Nothing Studied --------- None Alien Tech Used ----------------- None Achievements -------------- None Challenges ------------ None Game ------ Seed DynamicDisruptorDrive Manual? 0 Play Time 00:20:56 Cumulative 7.3 hours Start 2025.12.14 @ 19:16:19 End 2025.12.14 @ 19:34:57 Sessions 1 Manual Loads 0 Difficulty Rogue Special Mode None Game No. 14 Rogue 14 Adventurer 0 Explorer 0 Win Type - Total 0 Types 0/0/0/0/0/0/0/0/0/0 Lore% 0 Gallery% 7 Achievement% 9 Wizard Run 0 Options --------- Layout 1 ASCII 0 Keyboard 0 Movement Arrows Keybinds 0 Fullscreen 2 Font 32/SmallcapsGlow Map View 77x35 Zoom Use 0% Tactical HUD 0 Map Filters NONE Filters NONE Steam 1 RUN: a4830a4d-ceec-47a2-94ee-874185b54721